[Event "European Women Rapid-ch 2023"]
[Site "Monaco"]
[Date "2024.01.14"]
[Round "11.2"]
[White "Kosteniuk, Alexandra"]
[Black "Ushenina, Anna"]
[Result "1-0"]
[ECO "B07"]
[WhiteElo "2501"]
[BlackElo "2415"]
[Annotator "RC"]
[PlyCount "115"]
[EventDate "2023.12.19"]
[EventType "swiss"]
[EventCountry "MNC"]
[SourceTitle "playchess.com"]
[Source "ChessBase"]
[SourceQuality "1"]
[TimeControl "900+10"]

1. e4 {[%emt 0:00:01]} d6 {[%emt 0:00:02]} 2. d4 {[%emt 0:00:02]} Nf6 {[%emt 0:00:02]} 3. Nc3 {[%emt 0:00:03]} e5 {[%emt 0:00:01]} 4. Nge2 {[%emt 0:00:35]} Be7 {[%emt 0:00:24]} 5. h3 {[%emt 0:00:04]} O-O {[%emt 0:00:47]} 6. g4 {[%emt 0:00:07]} c6 {[%emt 0:00:59]} 7. a4 {[%emt 0:00:55]} a5 {[%emt 0:00:50]} 8. Bg2 {[%emt 0:00:06]} Na6 {[%emt 0:00:29]} 9. O-O {[%emt 0:00:27]} h5 {[%emt 0:00:43]} 10. g5 {[%emt 0:00:26]} Nh7 {[%emt 0:01:15]} 11. h4 {[%emt 0:00:06]} g6 {[%emt 0:00:05]} 12. f4 {[%emt 0:00:39]} f6 {[%emt 0:02:12]} 13. f5 {[%emt 0:01:42]} Qe8 {[%emt 0:00:01]} 14. gxf6 {[%emt 0:02:03]} Bxf6 {[%emt 0:00:02]} 15. Bh6 {[%emt 0:00:03]} Bg7 {[%emt 0:00:02]} 16. Bxg7 {[%emt 0:00:11]} Kxg7 {[%emt 0:00:01]} 17. Ng3 {[%emt 0:00:09]} Bd7 {[%emt 0:01:35]} 18. Qd2 {[%emt 0:01:26]} exd4 {[%emt 0:02:13]} 19. Qxd4+ {[%emt 0:00:02]} Qe5 {[%emt 0:00:02]} 20. Rad1 {[%emt 0:00:04]} Qxd4+ {[%emt 0:01:52]} 21. Rxd4 {[%emt 0:00:01]} Nc5 {[%emt 0:01:25]} 22. Rxd6 {[%emt 0:00:10]} gxf5 {[%emt 0:00:02]} 23. Nxh5+ {[%emt 0:00:34]} Kh8 {[%emt 0:01:17]} 24. Nf4 {[%emt 0:00:39]} Rf6 {[%emt 0:00:01]} 25. Rxf6 {[%emt 0:01:51]} Nxf6 {[%emt 0:00:01]} 26. exf5 {[%emt 0:00:01]} Kg7 {[%emt 0:00:05]} 27. Bh3 {[%emt 0:00:10]} Re8 {[%emt 0:00:24]} 28. Kf2 {[%emt 0:00:41]} Nce4+ {[%emt 0:00:09]} 29. Nxe4 {[%emt 0:00:27]} Rxe4 {[%emt 0:00:01]} 30. Kf3 {[%emt 0:00:05]} Rxa4 {[%emt 0:00:07]} 31. Re1 {[%emt 0:00:16]} Kg8 {[%emt 0:01:24]} 32. h5 {[%emt 0:01:22]} Rb4 {[%emt 0:00:10]} 33. b3 {[%emt 0:00:14]} a4 {[%emt 0:00:05]} 34. bxa4 {[%emt 0:00:09]} Rxa4 {[%emt 0:00:01]} 35. Rg1+ {[%emt 0:00:55]} Kh7 {[%emt 0:00:41]} 36. Rg6 {[%emt 0:00:22]} Ra3+ {[%emt 0:00:12]} 37. Kg2 {[%emt 0:00:01]} Nd5 {[%emt 0:00:16]} 38. Nxd5 {[%emt 0:01:27]} cxd5 {[%emt 0:00:01]} 39. Bg4 {[%emt 0:00:37]} Rc3 {[%emt 0:00:23]} 40. f6 {[%emt 0:01:15]} Bxg4 {[%emt 0:00:22]} 41. Rxg4 {[%emt 0:00:03]} Rxc2+ {[%emt 0:00:19]} 42. Kf3 {[%emt 0:00:03]} Rc7 {[%emt 0:00:42]} 43. Rf4 {[%emt 0:00:02]} Kg8 {[%emt 0:00:11]} 44. Rf5 {[%emt 0:00:17]} b5 {[%emt 0:00:13]} 45. Rg5+ {[%emt 0:00:55]} Kf8 {[%emt 0:00:16]} 46. Rxd5 {[%emt 0:00:07]} Rb7 {[%emt 0:00:01]} 47. h6 {[%emt 0:00:05]} Kg8 {[%emt 0:00:07]} 48. Rg5+ {[%emt 0:00:07]} Kh8 {[%emt 0:00:03]} 49. Rg7 {[%emt 0:00:09]} Rb8 {[%emt 0:00:06]} 50. Kf4 {[%emt 0:00:31]} b4 {[%emt 0:00:25]} 51. Kf5 {[%emt 0:00:01]} b3 {[%emt 0:00:13]} 52. Kg6 {[%emt 0:00:15]} Rb6 {[%emt 0:00:13]} 53. Rh7+ {[%emt 0:00:21]} Kg8 {[%emt 0:00:01]} 54. Re7 {[%emt 0:00:01]} Rb8 {[%emt 0:00:09]} 55. Re8+ {[%emt 0:00:03]} Rxe8 {[%emt 0:00:02]} 56. f7+ {[%emt 0:00:00]} Kf8 {[%emt 0:00:01]} 57. fxe8=Q+ {[%emt 0:00:03]} Kxe8 {[%emt 0:00:01]} 58. h7 {[%emt 0:00:01]} 1-0

[Event "European Women Rapid-ch 2023"]
[Site "Monaco"]
[Date "2024.01.14"]
[Round "11.3"]
[White "Kulon, Klaudia"]
[Black "Wagner, Dinara"]
[Result "1-0"]
[ECO "A13"]
[WhiteElo "2323"]
[BlackElo "2459"]
[Annotator "RC"]
[PlyCount "111"]
[EventDate "2023.12.19"]
[EventType "swiss"]
[EventCountry "MNC"]
[SourceTitle "playchess.com"]
[Source "ChessBase"]
[SourceQuality "1"]
[TimeControl "900+10"]

1. c4 {[%emt 0:00:01]} Nf6 {[%emt 0:00:02]} 2. g3 {[%emt 0:00:10]} e6 {[%emt 0:00:04]} 3. Bg2 {[%emt 0:00:01]} d5 {[%emt 0:00:02]} 4. Nf3 {[%emt 0:00:01]} dxc4 {[%emt 0:00:03]} 5. O-O {[%emt 0:00:16]} a6 {[%emt 0:00:35]} 6. a4 {[%emt 0:00:06]} Nc6 {[%emt 0:00:22]} 7. Na3 {[%emt 0:00:34]} Na5 {[%emt 0:00:02]} 8. Qc2 {[%emt 0:00:46]} Nb3 {[%emt 0:00:18]} 9. Rb1 {[%emt 0:00:01]} Nxc1 {[%emt 0:00:57]} 10. Rfxc1 {[%emt 0:00:04]} Be7 {[%emt 0:00:11]} 11. Nxc4 {[%emt 0:01:49]} O-O {[%emt 0:00:06]} 12. d4 {[%emt 0:00:36]} Nd5 {[%emt 0:00:21]} 13. Nce5 {[%emt 0:00:59]} c6 {[%emt 0:00:26]} 14. Nd3 {[%emt 0:00:02]} a5 {[%emt 0:00:05]} 15. e4 {[%emt 0:00:35]} Nb4 {[%emt 0:00:36]} 16. Nxb4 {[%emt 0:00:01]} Bxb4 {[%emt 0:00:02]} 17. Rd1 {[%emt 0:00:06]} Qe7 {[%emt 0:00:09]} 18. h4 {[%emt 0:00:59]} h6 {[%emt 0:00:03]} 19. Rbc1 {[%emt 0:00:11]} Rd8 {[%emt 0:00:44]} 20. Ne5 {[%emt 0:00:17]} Bd7 {[%emt 0:02:03]} 21. Qe2 {[%emt 0:00:43]} Be8 {[%emt 0:00:15]} 22. b3 {[%emt 0:02:19]} c5 {[%emt 0:01:35]} 23. dxc5 {[%emt 0:01:47]} Bxc5 {[%emt 0:00:05]} 24. Nc4 {[%emt 0:01:25]} Rxd1+ {[%emt 0:02:38]} 25. Rxd1 {[%emt 0:00:05]} e5 {[%emt 0:00:21]} 26. Ne3 {[%emt 0:00:47]} Bc6 {[%emt 0:01:45]} 27. Nf5 {[%emt 0:00:29]} Qf6 {[%emt 0:00:48]} 28. Qc2 {[%emt 0:00:06]} b6 {[%emt 0:00:13]} 29. Bf1 {[%emt 0:00:20]} Kh7 {[%emt 0:00:51]} 30. Re1 {[%emt 0:03:06]} Rd8 {[%emt 0:00:04]} 31. Bc4 {[%emt 0:00:05]} Rd7 {[%emt 0:01:45]} 32. Ne3 {[%emt 0:00:36]} Qg6 {[%emt 0:00:04]} 33. Nf1 {[%emt 0:00:18]} Rd4 {[%emt 0:00:29]} 34. Bd3 {[%emt 0:00:13]} Rd6 {[%emt 0:00:30]} 35. Kg2 {[%emt 0:00:08]} Rf6 {[%emt 0:00:18]} 36. f3 {[%emt 0:00:03]} Rf4 {[%emt 0:00:30]} 37. h5 {[%emt 0:00:04]} Qg5 {[%emt 0:00:13]} 38. Qc1 {[%emt 0:00:05]} Bd7 {[%emt 0:00:35]} 39. Nh2 {[%emt 0:00:21]} Bd4 {[%emt 0:01:02]} 40. Bc4 {[%emt 0:00:02]} Bc5 {[%emt 0:00:15]} 41. Rd1 {[%emt 0:00:05]} Bc6 {[%emt 0:00:15]} 42. Re1 {[%emt 0:00:10]} Bd7 {[%emt 0:00:10]} 43. Rd1 {[%emt 0:00:02]} Bc8 {[%emt 0:00:00]} 44. Qd2 {[%emt 0:00:25]} Bd4 {[%emt 0:00:12]} 45. Qc1 {[%emt 0:00:01]} Bb7 {[%emt 0:00:04]} 46. Rxd4 {[%emt 0:00:02]} Bc8 {[%emt 0:00:29]} 47. Rd1 {[%emt 0:00:10]} Bb7 {[%emt 0:00:09]} 48. Bd5 {[%emt 0:00:08]} Ba6 {[%emt 0:00:06]} 49. Ng4 {[%emt 0:00:12]} Rxg4 {[%emt 0:00:03]} 50. fxg4 {[%emt 0:00:02]} Qxg4 {[%emt 0:00:02]} 51. Rf1 {[%emt 0:00:24]} Qxh5 {[%emt 0:00:21]} 52. Rf2 {[%emt 0:00:16]} Qg4 {[%emt 0:00:17]} 53. Qh1 {[%emt 0:00:38]} Bd3 {[%emt 0:00:08]} 54. Qh4 {[%emt 0:00:04]} Qd1 {[%emt 0:00:03]} 55. Qe7 {[%emt 0:00:10]} Qg4 {[%emt 0:00:17]} 56. Qxe5 {[%emt 0:00:06]} 1-0

[Event "European Women Rapid-ch 2023"]
[Site "Monaco"]
[Date "2024.01.14"]
[Round "11.4"]
[White "Khotenashvili, Bella"]
[Black "Daulyte-Cornette, Deimante"]
[Result "0-1"]
[ECO "A30"]
[WhiteElo "2467"]
[BlackElo "2372"]
[Annotator "RC"]
[PlyCount "80"]
[EventDate "2023.12.19"]
[EventType "swiss"]
[EventCountry "MNC"]
[SourceTitle "playchess.com"]
[Source "ChessBase"]
[SourceQuality "1"]
[TimeControl "900+10"]

1. Nf3 {[%emt 0:00:01]} Nf6 {[%emt 0:00:04]} 2. g3 {[%emt 0:00:02]} c5 {[%emt 0:00:18]} 3. c4 {[%emt 0:00:31]} d5 {[%emt 0:00:28]} 4. Bg2 {[%emt 0:00:48]} Nc6 {[%emt 0:00:11]} 5. O-O {[%emt 0:00:39]} e5 {[%emt 0:00:16]} 6. d3 {[%emt 0:01:03]} Be7 {[%emt 0:00:29]} 7. cxd5 {[%emt 0:01:24]} Nxd5 {[%emt 0:00:03]} 8. Nc3 {[%emt 0:00:00]} Be6 {[%emt 0:00:07]} 9. Bd2 {[%emt 0:00:08]} O-O {[%emt 0:00:04]} 10. a3 {[%emt 0:00:08]} h6 {[%emt 0:00:29]} 11. Rc1 {[%emt 0:00:11]} Rc8 {[%emt 0:00:34]} 12. Nxd5 {[%emt 0:00:43]} Bxd5 {[%emt 0:00:03]} 13. Bc3 {[%emt 0:00:01]} Qd6 {[%emt 0:00:46]} 14. Qa4 {[%emt 0:01:51]} Qe6 {[%emt 0:00:47]} 15. Nd2 {[%emt 0:01:02]} Bxg2 {[%emt 0:00:32]} 16. Kxg2 {[%emt 0:00:02]} Bg5 {[%emt 0:00:19]} 17. h4 {[%emt 0:01:26]} Bxd2 {[%emt 0:00:14]} 18. Bxd2 {[%emt 0:00:02]} Nd4 {[%emt 0:00:15]} 19. Rfe1 {[%emt 0:02:28]} b5 {[%emt 0:00:49]} 20. Qd1 {[%emt 0:00:59]} Rfd8 {[%emt 0:00:13]} 21. Be3 {[%emt 0:00:40]} c4 {[%emt 0:01:20]} 22. Bxd4 {[%emt 0:03:40]} exd4 {[%emt 0:01:26]} 23. Qd2 {[%emt 0:00:46]} c3 {[%emt 0:00:30]} 24. bxc3 {[%emt 0:00:02]} Qc6+ {[%emt 0:00:03]} 25. Kg1 {[%emt 0:00:09]} dxc3 {[%emt 0:00:02]} 26. Qc2 {[%emt 0:00:03]} a5 {[%emt 0:00:07]} 27. Rb1 {[%emt 0:00:04]} Qc5 {[%emt 0:00:17]} 28. Rb3 {[%emt 0:00:14]} b4 {[%emt 0:00:42]} 29. axb4 {[%emt 0:00:02]} axb4 {[%emt 0:00:02]} 30. Reb1 {[%emt 0:00:00]} Rb8 {[%emt 0:00:31]} 31. Ra1 {[%emt 0:00:37]} Rd6 {[%emt 0:00:52]} 32. Rab1 {[%emt 0:00:15]} Rbb6 {[%emt 0:00:21]} 33. e3 {[%emt 0:00:14]} Rd8 {[%emt 0:01:34]} 34. Ra1 {[%emt 0:00:15]} Qd5 {[%emt 0:00:32]} 35. d4 {[%emt 0:00:13]} Ra8 {[%emt 0:00:24]} 36. Rxa8+ {[%emt 0:00:11]} Qxa8 {[%emt 0:00:01]} 37. e4 {[%emt 0:00:09]} Qa1+ {[%emt 0:00:55]} 38. Kg2 {[%emt 0:00:01]} Qe1 {[%emt 0:00:06]} 39. Rb1 {[%emt 0:00:18]} Qxb1 {[%emt 0:00:00]} 40. Qxb1 {[%emt 0:00:02]} b3 {[%emt 0:00:55]} 0-1

[Event "European Women Rapid-ch 2023"]
[Site "Monaco"]
[Date "2024.01.14"]
[Round "11.5"]
[White "Schippke, Manon"]
[Black "Salimova, Nurgyul"]
[Result "0-1"]
[ECO "B12"]
[WhiteElo "2162"]
[BlackElo "2426"]
[Annotator "RC"]
[PlyCount "80"]
[EventDate "2023.12.19"]
[EventType "swiss"]
[EventCountry "MNC"]
[SourceTitle "playchess.com"]
[Source "ChessBase"]
[SourceQuality "1"]
[TimeControl "900+10"]

1. e4 {[%emt 0:00:03]} c6 {[%emt 0:00:14]} 2. d4 {[%emt 0:00:01]} d5 {[%emt 0:00:02]} 3. e5 {[%emt 0:00:01]} Bf5 {[%emt 0:00:01]} 4. c4 {[%emt 0:00:01]} e6 {[%emt 0:00:02]} 5. Nc3 {[%emt 0:00:01]} Ne7 {[%emt 0:00:13]} 6. a3 {[%emt 0:00:02]} dxc4 {[%emt 0:00:30]} 7. Bxc4 {[%emt 0:00:02]} Nd7 {[%emt 0:00:10]} 8. Nge2 {[%emt 0:00:03]} h5 {[%emt 0:00:45]} 9. Bg5 {[%emt 0:01:04]} Nb6 {[%emt 0:01:12]} 10. Bb3 {[%emt 0:00:08]} h4 {[%emt 0:00:33]} 11. h3 {[%emt 0:00:09]} Qd7 {[%emt 0:00:20]} 12. O-O {[%emt 0:00:29]} Ng6 {[%emt 0:01:13]} 13. Rc1 {[%emt 0:01:09]} Be7 {[%emt 0:00:46]} 14. Qd2 {[%emt 0:00:23]} f6 {[%emt 0:00:25]} 15. exf6 {[%emt 0:00:20]} gxf6 {[%emt 0:00:02]} 16. Be3 {[%emt 0:00:41]} O-O-O {[%emt 0:01:18]} 17. a4 {[%emt 0:00:16]} Ne5 {[%emt 0:01:05]} 18. Nf4 {[%emt 0:03:17]} Nec4 {[%emt 0:02:31]} 19. Qe2 {[%emt 0:01:22]} Nxe3 {[%emt 0:00:08]} 20. fxe3 {[%emt 0:01:27]} Kb8 {[%emt 0:02:13]} 21. Rcd1 {[%emt 0:00:10]} Nd5 {[%emt 0:00:41]} 22. e4 {[%emt 0:01:20]} Nxf4 {[%emt 0:00:02]} 23. Rxf4 {[%emt 0:00:05]} Bg6 {[%emt 0:00:12]} 24. Qf2 {[%emt 0:00:44]} f5 {[%emt 0:00:58]} 25. exf5 {[%emt 0:00:43]} Bxf5 {[%emt 0:00:05]} 26. Kh1 {[%emt 0:01:39]} Bg5 {[%emt 0:00:44]} 27. Rf3 {[%emt 0:00:02]} Qd6 {[%emt 0:00:26]} 28. d5 {[%emt 0:00:43]} cxd5 {[%emt 0:00:32]} 29. Bxd5 {[%emt 0:01:00]} Qb6 {[%emt 0:00:12]} 30. Qe2 {[%emt 0:00:35]} a6 {[%emt 0:00:50]} 31. Rff1 {[%emt 0:01:08]} Ka7 {[%emt 0:00:57]} 32. Qe5 {[%emt 0:00:17]} Rhf8 {[%emt 0:00:26]} 33. b4 {[%emt 0:00:48]} Bf6 {[%emt 0:00:11]} 34. a5 {[%emt 0:00:15]} Bxe5 {[%emt 0:00:14]} 35. axb6+ {[%emt 0:00:02]} Kxb6 {[%emt 0:00:07]} 36. Na4+ {[%emt 0:00:14]} Kb5 {[%emt 0:00:31]} 37. Bb3 {[%emt 0:00:20]} Rxd1 {[%emt 0:00:06]} 38. Bxd1 {[%emt 0:00:02]} Kxb4 {[%emt 0:00:14]} 39. Nb6 {[%emt 0:00:01]} Rd8 {[%emt 0:00:07]} 40. Bf3 {[%emt 0:00:04]} Bd4 {[%emt 0:00:08]} 0-1

[Event "European Women Rapid-ch 2023"]
[Site "Monaco"]
[Date "2024.01.14"]
[Round "11.6"]
[White "Agrest, Inna"]
[Black "Khademalsharieh, Sarasadat"]
[Result "0-1"]
[ECO "C70"]
[WhiteElo "2287"]
[BlackElo "2486"]
[Annotator "RC"]
[PlyCount "98"]
[EventDate "2023.12.19"]
[EventType "swiss"]
[EventCountry "MNC"]
[SourceTitle "playchess.com"]
[Source "ChessBase"]
[SourceQuality "1"]
[TimeControl "900+10"]

1. e4 {[%emt 0:00:02]} e5 {[%emt 0:00:02]} 2. Nf3 {[%emt 0:00:02]} Nc6 {[%emt 0:00:02]} 3. Bb5 {[%emt 0:00:01]} a6 {[%emt 0:00:08]} 4. Ba4 {[%emt 0:00:02]} Nge7 {[%emt 0:00:04]} 5. c3 {[%emt 0:00:24]} f6 {[%emt 0:00:04]} 6. d3 {[%emt 0:00:40]} d5 {[%emt 0:00:32]} 7. Qe2 {[%emt 0:00:11]} Be6 {[%emt 0:00:18]} 8. Nbd2 {[%emt 0:00:54]} Ng6 {[%emt 0:00:25]} 9. Nf1 {[%emt 0:00:14]} Qd7 {[%emt 0:00:14]} 10. b4 {[%emt 0:04:24]} d4 {[%emt 0:00:34]} 11. b5 {[%emt 0:02:30]} axb5 {[%emt 0:00:15]} 12. Bxb5 {[%emt 0:00:03]} dxc3 {[%emt 0:00:05]} 13. Ng3 {[%emt 0:00:18]} Bb4 {[%emt 0:00:40]} 14. O-O {[%emt 0:00:10]} O-O {[%emt 0:00:03]} 15. Rd1 {[%emt 0:01:09]} Qf7 {[%emt 0:01:38]} 16. d4 {[%emt 0:01:25]} Nxd4 {[%emt 0:01:31]} 17. Nxd4 {[%emt 0:01:26]} exd4 {[%emt 0:00:02]} 18. Rxd4 {[%emt 0:00:02]} Bc5 {[%emt 0:00:48]} 19. Rd1 {[%emt 0:00:40]} c6 {[%emt 0:00:21]} 20. Bd3 {[%emt 0:00:07]} Rxa2 {[%emt 0:00:11]} 21. Rxa2 {[%emt 0:00:08]} Bxa2 {[%emt 0:00:01]} 22. Nf5 {[%emt 0:00:31]} b5 {[%emt 0:00:12]} 23. Bh6 {[%emt 0:00:27]} Rd8 {[%emt 0:05:04]} 24. Bxg7 {[%emt 0:00:10]} Qe6 {[%emt 0:00:07]} 25. Bxf6 {[%emt 0:00:17]} Qxf6 {[%emt 0:01:20]} 26. Qxa2+ {[%emt 0:00:07]} Kh8 {[%emt 0:00:01]} 27. Qc2 {[%emt 0:01:53]} Ne5 {[%emt 0:00:40]} 28. Be2 {[%emt 0:00:14]} b4 {[%emt 0:00:18]} 29. h3 {[%emt 0:00:07]} Rb8 {[%emt 0:00:40]} 30. Qb3 {[%emt 0:00:23]} Qf7 {[%emt 0:00:02]} 31. Qc2 {[%emt 0:00:34]} Ng6 {[%emt 0:00:59]} 32. Bh5 {[%emt 0:00:16]} Qf6 {[%emt 0:00:05]} 33. Qb3 {[%emt 0:00:14]} Ne7 {[%emt 0:00:48]} 34. Qc4 {[%emt 0:00:19]} Nxf5 {[%emt 0:00:49]} 35. Qxc5 {[%emt 0:00:09]} Ng7 {[%emt 0:00:39]} 36. Be2 {[%emt 0:00:22]} Qf8 {[%emt 0:00:53]} 37. Qxc6 {[%emt 0:00:03]} Rc8 {[%emt 0:00:06]} 38. Qd5 {[%emt 0:00:11]} c2 {[%emt 0:00:18]} 39. Rc1 {[%emt 0:00:01]} Qg8 {[%emt 0:00:13]} 40. Qd4 {[%emt 0:00:19]} b3 {[%emt 0:00:02]} 41. Bg4 {[%emt 0:00:12]} Rd8 {[%emt 0:00:11]} 42. Qb2 {[%emt 0:00:02]} Qc4 {[%emt 0:00:03]} 43. Re1 {[%emt 0:00:10]} Qb4 {[%emt 0:00:14]} 44. Rc1 {[%emt 0:00:11]} Qd2 {[%emt 0:00:05]} 45. Ra1 {[%emt 0:00:07]} Qd4 {[%emt 0:00:20]} 46. Qxd4 {[%emt 0:00:18]} Rxd4 {[%emt 0:00:01]} 47. Ra8+ {[%emt 0:00:05]} Ne8 {[%emt 0:00:01]} 48. Rxe8+ {[%emt 0:00:01]} Kg7 {[%emt 0:00:01]} 49. Rc8 {[%emt 0:00:33]} b2 {[%emt 0:00:07]} 0-1

[Event "European Women Rapid-ch 2023"]
[Site "Monaco"]
[Date "2024.01.14"]
[Round "11.7"]
[White "Osmak, Yuliia"]
[Black "Batsiashvili, Nino"]
[Result "0-1"]
[ECO "B01"]
[WhiteElo "2450"]
[BlackElo "2451"]
[Annotator "RC"]
[PlyCount "76"]
[EventDate "2023.12.19"]
[EventType "swiss"]
[EventCountry "MNC"]
[SourceTitle "playchess.com"]
[Source "ChessBase"]
[SourceQuality "1"]
[TimeControl "900+10"]

1. e4 {[%emt 0:00:01]} d5 {[%emt 0:00:00]} 2. exd5 {[%emt 0:00:03]} Qxd5 {[%emt 0:00:01]} 3. Nc3 {[%emt 0:00:03]} Qa5 {[%emt 0:00:01]} 4. d4 {[%emt 0:00:08]} Nf6 {[%emt 0:00:02]} 5. Nf3 {[%emt 0:00:11]} Bf5 {[%emt 0:00:02]} 6. Bc4 {[%emt 0:00:41]} e6 {[%emt 0:00:02]} 7. O-O {[%emt 0:00:03]} c6 {[%emt 0:00:11]} 8. Bf4 {[%emt 0:01:03]} Nbd7 {[%emt 0:00:33]} 9. Ne2 {[%emt 0:00:54]} Be7 {[%emt 0:00:45]} 10. Ng3 {[%emt 0:00:03]} Bg6 {[%emt 0:00:00]} 11. Nh4 {[%emt 0:00:26]} Nd5 {[%emt 0:00:25]} 12. Nxg6 {[%emt 0:00:17]} hxg6 {[%emt 0:00:02]} 13. Bd2 {[%emt 0:00:15]} Qc7 {[%emt 0:00:23]} 14. Bb3 {[%emt 0:00:31]} N7f6 {[%emt 0:00:20]} 15. Qf3 {[%emt 0:00:18]} Rh4 {[%emt 0:01:12]} 16. c4 {[%emt 0:02:22]} Nf4 {[%emt 0:00:13]} 17. Be3 {[%emt 0:02:35]} O-O-O {[%emt 0:00:38]} 18. Rfd1 {[%emt 0:00:19]} g5 {[%emt 0:00:16]} 19. d5 {[%emt 0:00:56]} exd5 {[%emt 0:01:04]} 20. cxd5 {[%emt 0:00:28]} N6xd5 {[%emt 0:00:14]} 21. Bxd5 {[%emt 0:00:40]} Nxd5 {[%emt 0:01:16]} 22. Qxf7 {[%emt 0:00:50]} Bf6 {[%emt 0:00:34]} 23. Qxc7+ {[%emt 0:00:36]} Kxc7 {[%emt 0:00:01]} 24. Nf5 {[%emt 0:00:20]} Nxe3 {[%emt 0:00:52]} 25. fxe3 {[%emt 0:00:15]} Rxd1+ {[%emt 0:00:01]} 26. Rxd1 {[%emt 0:00:04]} Ra4 {[%emt 0:00:01]} 27. Nd6 {[%emt 0:01:29]} Bxb2 {[%emt 0:00:45]} 28. Ne8+ {[%emt 0:00:41]} Kb6 {[%emt 0:00:20]} 29. Rd7 {[%emt 0:00:07]} Rxa2 {[%emt 0:01:09]} 30. Nd6 {[%emt 0:00:05]} a5 {[%emt 0:01:57]} 31. Rxb7+ {[%emt 0:00:03]} Kc5 {[%emt 0:00:04]} 32. Ne4+ {[%emt 0:00:27]} Kc4 {[%emt 0:00:31]} 33. Nxg5 {[%emt 0:01:13]} a4 {[%emt 0:00:12]} 34. Ne6 {[%emt 0:00:27]} a3 {[%emt 0:00:47]} 35. Kf2 {[%emt 0:00:20]} Bc3+ {[%emt 0:00:31]} 36. Kf3 {[%emt 0:00:02]} Rd2 {[%emt 0:00:06]} 37. Rc7 {[%emt 0:00:40]} a2 {[%emt 0:00:25]} 38. Rxc6+ {[%emt 0:00:01]} Kb5 {[%emt 0:00:37]} 0-1

[Event "European Women Rapid-ch 2023"]
[Site "Monaco"]
[Date "2024.01.14"]
[Round "11.8"]
[White "Hoang, Thanh Trang"]
[Black "Gvetadze, Sofio"]
[Result "1-0"]
[ECO "A49"]
[WhiteElo "2382"]
[BlackElo "2298"]
[Annotator "RC"]
[PlyCount "89"]
[EventDate "2023.12.19"]
[EventType "swiss"]
[EventCountry "MNC"]
[SourceTitle "playchess.com"]
[Source "ChessBase"]
[SourceQuality "1"]
[TimeControl "900+10"]

1. d4 {[%emt 0:00:02]} Nf6 {[%emt 0:00:02]} 2. Nf3 {[%emt 0:00:05]} g6 {[%emt 0:00:02]} 3. g3 {[%emt 0:00:06]} Bg7 {[%emt 0:00:02]} 4. Bg2 {[%emt 0:00:02]} O-O {[%emt 0:00:03]} 5. O-O {[%emt 0:00:05]} d6 {[%emt 0:00:03]} 6. a4 {[%emt 0:00:07]} Nbd7 {[%emt 0:00:10]} 7. a5 {[%emt 0:00:12]} a6 {[%emt 0:00:18]} 8. Re1 {[%emt 0:00:33]} e5 {[%emt 0:00:20]} 9. e4 {[%emt 0:00:21]} exd4 {[%emt 0:00:25]} 10. Nxd4 {[%emt 0:00:08]} Re8 {[%emt 0:00:02]} 11. Nc3 {[%emt 0:00:22]} Nc5 {[%emt 0:00:08]} 12. h3 {[%emt 0:00:32]} Ne6 {[%emt 0:01:36]} 13. Nxe6 {[%emt 0:02:20]} Bxe6 {[%emt 0:00:38]} 14. e5 {[%emt 0:00:24]} dxe5 {[%emt 0:00:13]} 15. Bxb7 {[%emt 0:00:27]} Bxh3 {[%emt 0:00:14]} 16. Qxd8 {[%emt 0:00:45]} Rexd8 {[%emt 0:04:16]} 17. Bxa8 {[%emt 0:00:29]} Rxa8 {[%emt 0:00:01]} 18. Rxe5 {[%emt 0:01:52]} Ng4 {[%emt 0:00:02]} 19. Re4 {[%emt 0:00:26]} Ne5 {[%emt 0:02:04]} 20. f4 {[%emt 0:01:54]} Nf3+ {[%emt 0:00:15]} 21. Kf2 {[%emt 0:00:08]} Nd4 {[%emt 0:00:03]} 22. Be3 {[%emt 0:00:53]} Nxc2 {[%emt 0:02:19]} 23. Rc1 {[%emt 0:00:04]} Nxe3 {[%emt 0:00:03]} 24. Kxe3 {[%emt 0:00:07]} c5 {[%emt 0:00:08]} 25. Nd5 {[%emt 0:00:23]} Bxb2 {[%emt 0:00:14]} 26. Rxc5 {[%emt 0:00:10]} Rb8 {[%emt 0:02:45]} 27. Rb4 {[%emt 0:01:10]} Re8+ {[%emt 0:00:03]} 28. Kf2 {[%emt 0:00:15]} Ba1 {[%emt 0:00:48]} 29. Rc1 {[%emt 0:00:51]} Bg7 {[%emt 0:00:09]} 30. Rc6 {[%emt 0:00:22]} Rd8 {[%emt 0:00:48]} 31. Nf6+ {[%emt 0:00:07]} Bxf6 {[%emt 0:01:15]} 32. Rxf6 {[%emt 0:00:03]} Be6 {[%emt 0:00:04]} 33. f5 {[%emt 0:01:42]} gxf5 {[%emt 0:00:13]} 34. Rh6 {[%emt 0:00:03]} Rd2+ {[%emt 0:00:06]} 35. Ke3 {[%emt 0:00:23]} Ra2 {[%emt 0:00:02]} 36. Rbh4 {[%emt 0:00:29]} Rxa5 {[%emt 0:00:12]} 37. Rxh7 {[%emt 0:00:09]} Kf8 {[%emt 0:00:05]} 38. Rh8+ {[%emt 0:00:09]} Ke7 {[%emt 0:00:02]} 39. Rb4 {[%emt 0:00:12]} Ra3+ {[%emt 0:00:06]} 40. Kf4 {[%emt 0:00:04]} a5 {[%emt 0:00:05]} 41. Rb7+ {[%emt 0:00:06]} Kf6 {[%emt 0:00:01]} 42. Rh6+ {[%emt 0:00:03]} Kg7 {[%emt 0:00:05]} 43. Rxe6 {[%emt 0:00:03]} Ra4+ {[%emt 0:00:09]} 44. Kxf5 {[%emt 0:00:13]} Rb4 {[%emt 0:00:01]} 45. Ree7 {[%emt 0:00:11]} 1-0